bitfinex-derivatives/quotes_ETHF0:USTF0_20260113
["timestamp","ask_amount","ask_price","bid_price","bid_amount"]
[1768281247312,0.84211738,3134.2,3133.4,0.00352658]
[1768281247619,2.82124341,3134.4,3133.4,0.00352658]
[1768281247819,0.84219673,3134.3,3133.4,0.00352658]
[1768281248020,2.82124341,3134.1,3132.6,4.07572363]
[1768281248616,2.82124341,3134.1,3132.6,2.98802687]
[1768281248824,2.82124341,3134.1,3132.8,1.08769676]
[1768281249022,2.82124341,3134.1,3132.8,0.00399188]
[1768281249522,1.08769676,3134.0,3132.8,0.00399188]
[1768281249817,1.08769676,3133.5,3132.8,0.00399188]
[1768281250022,1.456,3133.6,3132.1,1.08769676]
[1768281251014,1.456,3133.6,3132.1,1.09169773]
[1768281251213,4.27724341,3133.6,3132.1,0.00400097]
[1768281251417,3.90894017,3133.5,3132.1,0.00400097]
[1768281251827,1.456,3133.6,3132.3,1.08769676]
[1768281252329,2.82124341,3134.0,3132.7,1.08769676]
[1768281252532,2.29978015,3133.9,3132.6,1.08769676]
[1768281252732,2.29978015,3133.9,3132.1,0.00400097]
[1768281252733,4.75072032,3133.8,3132.1,0.00400097]
[1768281253036,3.66302356,3133.7,3132.2,1.08769676]
[1768281253235,1.08769676,3133.5,3132.1,0.00400097]
[1768281253635,3.90894017,3133.5,3132.1,0.00400097]
[1768281254131,0.0047892,3133.1,3132.1,0.00400097]
[1768281258035,1.08769676,3133.0,3132.1,0.00400097]
[1768281258339,4.05843881,3133.0,3132.1,0.00400097]
[1768281258739,2.97074205,3133.0,3132.1,0.00400097]
[1768281259242,4.42874205,3133.0,3132.1,0.00400097]
[1768281259837,4.05599816,3132.8,3131.1,4.24154495]
[1768281260032,4.05599816,3132.8,3131.3,1.08769676]
[1768281260532,4.05599816,3132.8,3131.1,3.15384819]
[1768281260533,2.9683014,3132.8,3131.6,1.08769676]
[1768281260840,2.9683014,3132.8,3131.6,1.09121929]
[1768281261337,0.00244065,3133.0,3131.9,4.24154495]
[1768281261544,0.00244065,3133.0,3132.2,1.08769676]
[1768281262144,0.00244065,3133.0,3132.0,1.08769676]
[1768281263244,0.00244065,3133.0,3132.0,4.24154495]
[1768281265443,1.457,3134.3,3132.9,1.08769676]
[1768281265644,0.84158577,3134.2,3133.2,1.08769676]
[1768281265941,1.08769676,3134.4,3132.9,1.08769676]
[1768281266143,1.08769676,3134.4,3132.7,3.15384819]
[1768281266345,1.09061461,3134.4,3132.7,3.15384819]
[1768281268340,0.00291785,3134.4,3132.7,3.15384819]
[1768281268644,1.08769676,3134.3,3132.7,3.15384819]
[1768281269845,1.08769676,3134.3,3132.9,1.08769676]
[1768281270038,0.00291785,3134.4,3132.7,3.15384819]
[1768281270243,1.08769676,3134.3,3132.8,1.08769676]
[1768281270445,1.09061461,3134.4,3132.8,1.08769676]
[1768281271644,4.05891601,3134.4,3132.7,3.15384819]
[1768281272145,2.9683014,3134.3,3132.7,3.15384819]
[1768281273340,1.08769676,3134.1,3132.7,3.15384819]
[1768281273742,2.9683014,3134.3,3132.7,3.15384819]
[1768281275046,2.9683014,3134.3,3132.7,4.24154495]
[1768281275252,1.08769676,3134.1,3132.7,4.24154495]
[1768281275748,1.08769676,3134.1,3132.7,3.15384819]
[1768281276343,1.08769676,3133.8,3132.3,3.96991489]
[1768281276552,1.08769676,3133.8,3132.3,2.88221813]
[1768281276950,3.14478869,3134.0,3132.4,1.08769676]
[1768281276951,4.23248545,3134.0,3132.4,1.08769676]
[1768281279046,1.08769676,3134.2,3132.7,1.08769676]
[1768281279246,1.08769676,3134.2,3132.7,3.96991489]
[1768281281351,4.23248545,3134.2,3132.7,3.96991489]
[1768281281651,1.08769676,3133.9,3132.7,2.88221813]
[1768281282352,1.08769676,3134.0,3132.7,2.88221813]
[1768281282846,0.00291785,3134.4,3133.2,3.96991489]
[1768281283052,0.00291785,3134.4,3133.5,1.08769676]
[1768281283250,0.00291785,3134.4,3133.3,2.88221813]
[1768281283754,0.00291785,3134.4,3133.3,3.96991489]
[1768281287251,0.00291785,3134.4,3133.4,2.88221813]
[1768281287556,0.00291785,3134.4,3133.6,3.96991489]
[1768281290155,0.00291785,3134.4,3133.7,2.88221813]
[1768281290955,2.54269676,3135.1,3133.7,2.88221813]
[1768281291155,0.84226165,3135.0,3133.7,2.88221813]
[1768281291361,0.84226165,3134.9,3133.7,2.88221813]
[1768281291562,2.54269676,3135.1,3133.7,2.88221813]
[1768281291757,0.84272543,3135.0,3134.0,0.0047892]
[1768281291957,1.08769676,3134.8,3134.0,0.00865285]
[1768281293360,0.00284569,3135.0,3134.0,0.00865285]
[1768281293361,1.08784008,3134.5,3134.0,0.00865285]
[1768281293857,1.08784008,3134.3,3134.0,0.00865285]
[1768281294161,1.08784008,3134.3,3133.3,3.97005821]
[1768281294964,1.08784008,3134.3,3133.3,3.97254341]
[1768281295965,1.08784008,3134.3,3133.3,1.09032528]
[1768281296658,1.08784008,3134.3,3133.3,0.0024852]
[1768281297068,1.08784008,3134.3,3133.3,1.09032528]
[1768281297565,1.08784008,3134.1,3133.3,0.0024852]
[1768281299051,1.08784008,3134.3,3133.3,0.0024852]
[1768281299251,1.08784008,3134.0,3133.3,0.0024852]
[1768281299867,1.09262928,3134.0,3133.3,0.0024852]
[1768281300456,1.08784008,3133.4,3132.7,0.6]
[1768281301063,0.0047892,3134.0,3132.9,1.08784008]
[1768281301263,0.0047892,3134.0,3133.1,1.08784008]
[1768281301465,0.0047892,3134.0,3133.5,1.08784008]
[1768281301665,1.453,3134.6,3133.5,1.08784008]
[1768281301666,0.00284569,3135.0,3133.9,1.08784008]
[1768281301968,0.00284569,3135.0,3133.9,2.88221813]
[1768281302162,0.00284569,3135.0,3134.3,1.08784008]
[1768281303059,0.00284569,3135.0,3134.1,1.08784008]
[1768281303261,1.08908877,3135.0,3134.1,1.08784008]
[1768281303455,0.00124869,3135.0,3134.1,1.08784008]
[1768281303664,1.08784008,3134.9,3133.9,2.88221813]
[1768281303966,1.08784008,3134.9,3134.0,0.6]
[1768281304156,1.08784008,3134.9,3134.0,1.68784008]
[1768281304558,0.00124869,3135.0,3134.0,1.68784008]
[1768281305866,1.08908877,3135.0,3134.0,1.68784008]
[1768281306266,1.08908877,3135.0,3134.0,0.6]
[1768281306566,1.08908877,3135.0,3134.0,1.68784008]
[1768281308260,1.08908877,3135.0,3134.0,0.6]
[1768281308461,1.08908877,3135.0,3134.0,1.68784008]
[1768281308659,1.08908877,3135.0,3134.0,0.6]
[1768281309668,0.00124869,3135.0,3134.1,1.08784008]
[1768281309967,1.08784008,3134.9,3134.0,1.68784008]
[1768281310766,0.00124869,3135.0,3134.0,1.68784008]
[1768281310968,1.08784008,3134.9,3134.0,1.68784008]
[1768281311264,0.00124869,3135.0,3134.1,2.96855809]
[1768281311466,0.00124869,3135.0,3134.4,1.08784008]
[1768281311767,1.08784008,3135.4,3134.4,1.08784008]
[1768281311968,0.84174628,3135.3,3134.4,1.08784008]
[1768281312166,1.08784008,3135.4,3134.4,1.08784008]
[1768281312364,0.84191217,3135.3,3134.4,1.08784008]
[1768281312668,1.08784008,3135.4,3134.4,1.08784008]
[1768281312862,1.11496732,3136.2,3135.0,1.08784008]
[1768281313067,1.11496732,3136.2,3134.8,4.05639817]
[1768281313068,1.08784008,3135.8,3134.8,4.05639817]
[1768281313265,0.84180628,3135.7,3134.8,4.05639817]
[1768281313466,1.08784008,3135.8,3134.8,4.05639817]
[1768281313771,0.84152431,3135.7,3135.0,0.0047892]
[1768281314065,1.08784008,3135.2,3135.0,0.0047892]
[1768281315066,1.08784008,3134.8,3134.5,0.6]
[1768281315471,1.08784008,3135.0,3134.5,0.6]
[1768281315665,3.17086327,3135.5,3134.5,0.6]
[1768281315870,1.08784008,3135.0,3134.5,0.6]
[1768281317470,3.17086327,3135.5,3134.5,0.6]
[1768281317767,1.08784008,3135.1,3134.5,0.6]
[1768281318472,1.452,3135.3,3134.5,0.6]
[1768281318670,1.08784008,3135.0,3134.5,0.6]
[1768281320371,1.08784008,3134.8,3134.5,0.6]
[1768281320574,1.08784008,3134.8,3133.8,2.98052119]
[1768281320771,1.08784008,3134.6,3133.8,2.98052119]
[1768281321874,1.08784008,3134.6,3133.3,2.98052119]
[1768281322072,1.08784008,3134.6,3133.7,1.08784008]
[1768281322470,1.08784008,3134.9,3134.1,1.08784008]
[1768281323266,1.08784008,3134.9,3133.9,1.08784008]
[1768281324475,1.08784008,3134.9,3133.8,1.08784008]
[1768281326384,1.08784008,3134.7,3133.8,1.08784008]
[1768281327079,1.08784008,3134.7,3133.7,1.08784008]
[1768281327278,1.08784008,3134.5,3133.5,1.08784008]
[1768281327978,0.0047892,3134.6,3133.3,1.08784008]
[1768281327979,1.08784008,3134.1,3133.3,1.08784008]
[1768281328278,1.08784008,3134.3,3133.2,4.06836127]
[1768281329184,1.08784008,3134.0,3133.2,1.08784008]
[1768281329580,1.08784008,3134.3,3133.2,1.08784008]
[1768281331986,1.08784008,3134.1,3133.2,1.08784008]
[1768281332282,1.08784008,3134.3,3133.2,1.08784008]
[1768281332488,1.08784008,3134.3,3133.1,0.00391033]
[1768281332680,1.08784008,3134.3,3133.5,1.08784008]
[1768281332880,1.08784008,3134.3,3133.1,0.00391033]
[1768281333185,1.08784008,3134.3,3133.3,1.08784008]
[1768281336886,1.08784008,3134.1,3133.3,1.08784008]
[1768281337479,1.08784008,3134.3,3133.3,1.08784008]
[1768281337988,1.08784008,3134.1,3133.3,1.08784008]
[1768281338290,1.08784008,3134.1,3133.2,1.08784008]
[1768281338687,1.08784008,3133.9,3133.1,0.00391033]
[1768281339295,1.08784008,3133.9,3133.2,1.08784008]
[1768281341298,1.08784008,3134.4,3133.2,1.08784008]
[1768281341588,1.08784008,3133.8,3133.1,0.00391033]
[1768281342393,1.08784008,3134.0,3133.1,1.09175041]
[1768281343396,1.08784008,3133.8,3133.1,0.00391033]
[1768281344900,3.13706915,3134.3,3133.1,0.00391033]
[1768281345192,1.08784008,3133.9,3133.1,0.00391033]
[1768281345402,1.08784008,3133.8,3133.1,0.00391033]
[1768281347090,3.13706915,3134.3,3133.1,0.00391033]
[1768281347286,1.08784008,3133.9,3133.1,0.00391033]
[1768281348188,1.08784008,3133.7,3133.1,0.00391033]
[1768281348394,1.08784008,3133.7,3132.4,3.08510577]
[1768281348395,1.08784008,3133.7,3132.7,1.08784008]
[1768281348788,3.13706915,3134.0,3132.7,1.08784008]
[1768281348991,1.08784008,3133.6,3132.7,1.08784008]
[1768281349396,1.08784008,3133.6,3132.7,1.0919785]
[1768281350796,3.13706915,3134.0,3132.9,1.08784008]
[1768281350997,1.08784008,3133.9,3132.9,1.08784008]
[1768281352695,1.08784008,3133.8,3132.9,1.08784008]
[1768281353095,1.08784008,3133.8,3132.7,3.08924419]
[1768281353294,1.08835929,3133.9,3132.7,3.08924419]
[1768281354693,1.08835929,3133.9,3132.7,0.00413842]
[1768281356898,4.22542844,3133.9,3132.7,0.00413842]
[1768281357096,1.08835929,3133.6,3132.7,0.00413842]
[1768281357600,1.08835929,3133.3,3131.9,7.0524489]
[1768281357797,1.08835929,3133.3,3132.0,3.08510577]
[1768281357997,1.08835929,3133.5,3132.1,4.17346506]
[1768281358701,0.0047892,3133.1,3132.1,4.17634338]
[1768281360200,1.09314849,3133.1,3132.1,0.00287832]
[1768281360421,1.08835929,3132.7,3132.1,0.00287832]
[1768281360708,0.0047892,3133.1,3132.1,0.00287832]
[1768281361403,0.0047892,3133.1,3132.6,1.08835929]
[1768281361713,0.00385001,3133.5,3132.6,1.08835929]
[1768281362004,0.00385001,3133.5,3132.6,4.17346506]
[1768281362210,3.13706915,3134.4,3133.3,1.08835929]
[1768281362400,0.84700877,3134.3,3133.3,1.08835929]
[1768281362593,1.451,3134.6,3133.3,1.08835929]
[1768281362792,0.84405465,3134.5,3133.3,1.08835929]
[1768281362996,1.93241394,3134.4,3133.0,4.17346506]
[1768281363200,1.09185036,3134.4,3133.0,3.08510577]
[1768281363902,1.08835929,3134.1,3132.6,3.08510577]
[1768281364103,4.22542844,3134.1,3132.6,4.17346506]
[1768281365808,4.22542844,3134.1,3132.6,3.08510577]
[1768281366108,4.22542844,3134.1,3132.7,1.08835929]
[1768281366312,3.13706915,3134.1,3132.7,1.08835929]
[1768281368303,4.28370864,3134.0,3132.6,3.08510577]
[1768281372901,3.19534935,3133.9,3132.3,0.1645992]
[1768281373206,4.28370864,3133.7,3132.3,0.1645992]
[1768281373407,3.19534935,3133.6,3132.3,0.1645992]
[1768281373609,3.19534935,3134.3,3132.3,3.21605351]
[1768281373909,1.08835929,3133.8,3132.4,4.10379062]
[1768281375421,4.29009852,3133.8,3132.4,3.01543133]
[1768281375714,3.20173923,3133.7,3132.3,0.0047892]
[1768281381215,1.08835929,3133.5,3132.3,0.0047892]
[1768281382409,4.29009852,3133.5,3132.3,0.0047892]
[1768281384214,3.20173923,3133.2,3132.3,0.0047892]
[1768281386110,4.29009852,3133.0,3132.1,0.00287832]
[1768281386315,3.20173923,3132.9,3132.1,0.00287832]
[1768281386515,4.29009852,3133.3,3132.1,0.00287832]
[1768281386819,0.84152825,3133.2,3132.1,0.00287832]
[1768281387020,1.449,3133.4,3132.1,3.01830965]
[1768281387725,2.53735929,3133.4,3132.1,3.01830965]
[1768281388124,2.53735929,3133.4,3132.1,0.00287832]
[1768281388325,5.73909852,3133.4,3132.1,0.00287832]
[1768281389427,3.20173923,3133.3,3132.1,0.00287832]
[1768281390425,3.20173923,3133.0,3131.4,2.87898384]
[1768281390620,3.20173923,3133.0,3131.6,1.08835929]
[1768281390931,4.65073923,3133.4,3132.2,1.08835929]
[1768281391427,1.08835929,3133.1,3132.2,0.00242593]
[1768281391630,4.29009852,3133.1,3132.2,0.00242593]
[1768281391820,3.20173923,3133.0,3132.2,0.00242593]
[1768281392127,3.20173923,3133.0,3131.4,1.08835929]
[1768281392524,1.09314849,3132.5,3131.1,3.01543133]
[1768281392822,0.0047892,3132.5,3131.6,1.08835929]
[1768281393127,0.0047892,3132.5,3131.6,1.0922219]
[1768281393330,0.0047892,3132.5,3131.6,0.00386261]
[1768281393728,3.20652843,3132.5,3130.7,3.17532133]
[1768281394030,3.20652843,3132.5,3131.2,1.08835929]
[1768281394031,0.0047892,3132.5,3131.2,1.08835929]
[1768281394230,0.0047892,3132.5,3131.5,1.08835929]
[1768281394529,0.0047892,3132.5,3131.5,4.10379062]
[1768281394825,0.0047892,3132.5,3131.5,4.10636797]
[1768281395022,3.31580357,3132.5,3131.5,0.00257735]
[1768281395229,0.0047892,3132.5,3131.7,1.08835929]
[1768281395916,0.0047892,3132.5,3131.5,3.06302821]
[1768281397133,0.0047892,3132.5,3131.5,0.00257735]
[1768281404235,0.0047892,3132.5,3131.5,4.1513875]
[1768281404434,0.0047892,3132.5,3131.6,3.06045086]
[1768281407435,0.0047892,3132.5,3131.5,0.00257735]
[1768281407841,1.08835929,3132.4,3131.5,0.00257735]
[1768281411738,3.31580357,3132.5,3131.5,0.00257735]
[1768281412045,0.0047892,3132.5,3131.5,0.00257735]
[1768281413247,0.0047892,3132.5,3131.5,1.09093664]
[1768281413542,0.0047892,3132.5,3131.5,4.1513875]
[1768281415349,0.0047892,3132.5,3131.7,1.08909918]
[1768281416849,0.0047892,3132.5,3131.5,0.00257735]
[1768281417147,0.0047892,3132.5,3131.6,1.08909918]
[1768281420749,0.0047892,3132.5,3131.8,1.08909918]
[1768281421050,0.0047892,3132.5,3132.0,1.08909918]
[1768281421755,3.31101437,3133.4,3132.4,1.08909918]
[1768281421943,0.84521157,3133.3,3132.4,1.08909918]
[1768281422142,0.84521157,3133.2,3132.4,1.08909918]
[1768281422451,1.457,3133.5,3132.4,1.08909918]
[1768281422653,1.08909918,3133.3,3132.4,1.08909918]
[1768281423250,1.08909918,3133.3,3132.3,1.08909918]
[1768281424251,1.08909918,3133.3,3132.2,3.06045086]
[1768281424456,1.08909918,3133.3,3132.3,1.08909918]
[1768281432060,1.08909918,3132.5,3131.6,3.06474536]
[1768281432259,0.0047892,3133.1,3132.4,1.08909918]
[1768281435364,0.0047892,3133.1,3131.6,3.2706318]
[1768281435666,1.09388838,3133.1,3132.1,1.08909918]
[1768281436967,0.0047892,3133.1,3132.3,1.08909918]
[1768281437755,0.0047892,3133.1,3132.1,1.08909918]
[1768281438663,0.0047892,3133.1,3132.2,1.08909918]
[1768281438856,1.09388838,3133.1,3132.2,1.08909918]
[1768281448868,0.0047892,3133.1,3132.2,1.08909918]
[1768281449169,1.09388838,3133.1,3132.2,1.08909918]
[1768281450365,1.458,3133.4,3132.9,1.08909918]
[1768281450566,3.03563376,3134.1,3132.9,1.08909918]
[1768281450762,1.08909918,3133.8,3132.7,1.08909918]
[1768281450969,0.00349107,3134.4,3132.8,3.2706318]
[1768281451174,2.62563634,3134.3,3132.8,3.2706318]
[1768281451469,0.84559847,3134.2,3132.8,3.2706318]
[1768281451669,0.84559847,3134.1,3132.8,3.2706318]
[1768281451870,0.84559847,3134.0,3132.8,3.2706318]
[1768281452168,1.08909918,3134.1,3133.2,1.08909918]
[1768281452358,0.84475031,3134.0,3133.2,1.08909918]
[1768281452565,1.08909918,3134.1,3133.2,1.08909918]
[1768281452771,0.84475031,3134.0,3133.2,1.08909918]
[1768281452961,1.457,3134.3,3133.2,1.08909918]
[1768281453267,1.08909918,3134.0,3133.2,1.08909918]
[1768281453670,1.08909918,3133.8,3132.8,3.2706318]
[1768281453860,1.08909918,3133.8,3132.9,1.08909918]
[1768281454468,1.08909918,3133.6,3132.8,3.2706318]
[1768281454770,4.49263376,3134.3,3132.5,1.08909918]
[1768281454771,1.08909918,3133.4,3132.5,1.08909918]
[1768281454971,3.19673983,3134.0,3132.9,1.08909918]
[1768281455173,1.08909918,3134.0,3133.1,1.08909918]
[1768281455565,1.457,3134.3,3133.1,1.08909918]
[1768281455764,1.08909918,3134.0,3133.1,1.08909918]
[1768281456273,2.54609918,3134.3,3133.3,1.08909918]
[1768281456572,1.08909918,3134.1,3133.3,1.08909918]
[1768281456974,1.08909918,3134.1,3133.1,1.08909918]
[1768281457576,2.54609918,3134.3,3133.1,1.08909918]
[1768281457778,1.08909918,3134.0,3133.1,1.08909918]
[1768281458077,1.08909918,3134.1,3133.1,1.08909918]
[1768281458378,3.19673983,3135.4,3134.0,1.08909918]
[1768281458569,1.93258681,3135.3,3134.3,1.08909918]
[1768281458772,3.19673983,3135.4,3134.5,1.08909918]
[1768281458971,1.08909918,3135.5,3134.5,1.08909918]
[1768281459172,1.09257681,3135.5,3134.5,1.09162758]
[1768281459475,1.09257681,3135.5,3134.6,0.0047892]
[1768281459676,1.08909918,3135.4,3134.6,0.0047892]
[1768281459980,8.499,3136.1,3134.9,1.08909918]
[1768281459981,1.08909918,3135.9,3134.9,1.08909918]
[1768281460179,1.08909918,3135.7,3134.9,1.08909918]
[1768281460380,3.19673983,3136.1,3134.9,1.08909918]
[1768281460680,1.08909918,3135.8,3134.9,1.08909918]
[1768281460977,1.09319513,3135.8,3134.9,1.08909918]
[1768281461479,1.09319513,3135.8,3134.7,1.08909918]
[1768281461673,1.08909918,3135.6,3134.7,1.08909918]
[1768281462188,1.11496732,3136.2,3135.5,1.08909918]
[1768281462365,3.19673983,3137.5,3135.8,1.08909918]
[1768281462569,1.08909918,3136.5,3135.7,1.08909918]
[1768281462775,1.08909918,3136.5,3135.5,1.08909918]
[1768281462980,1.08909918,3136.7,3135.5,1.08909918]
[1768281463176,3.19673983,3137.1,3135.4,3.36161091]
[1768281463476,3.2003336,3137.1,3135.9,1.08909918]
[1768281463679,3.2003336,3137.1,3135.7,1.09388838]
[1768281463878,1.08909918,3136.6,3135.7,1.09388838]
[1768281464482,3.2003336,3137.1,3135.7,1.09388838]
[1768281464673,1.08909918,3136.8,3135.7,1.09388838]
[1768281465069,1.08909918,3136.8,3135.7,0.0047892]
[1768281465275,1.08909918,3136.6,3135.7,0.0047892]
[1768281465583,1.08909918,3136.6,3135.7,1.09388838]
[1768281465781,3.2003336,3137.1,3135.7,1.09388838]
[1768281466083,1.08909918,3137.0,3136.1,1.08909918]
[1768281466283,0.00359377,3137.1,3136.1,1.08909918]
[1768281466486,0.00359377,3137.1,3136.3,1.08909918]
[1768281466680,1.09269295,3137.1,3136.1,1.08909918]
[1768281466986,1.08909918,3136.9,3135.7,3.36640011]
[1768281467186,1.08909918,3136.9,3135.8,1.08909918]
[1768281467880,0.00359377,3137.1,3135.8,1.08909918]
[1768281468082,1.08909918,3136.8,3135.8,1.08909918]
[1768281468382,1.08909918,3136.8,3135.7,3.36640011]
[1768281468383,1.08909918,3136.3,3135.7,0.0047892]
[1768281468578,1.08909918,3136.1,3135.7,0.0047892]
[1768281468889,1.08909918,3136.6,3135.7,0.0047892]
[1768281469887,1.08909918,3136.5,3135.7,0.0047892]
[1768281470082,1.08909918,3136.3,3135.7,0.0047892]
[1768281470581,4.28583901,3136.8,3135.0,1.08909918]
[1768281470582,1.08909918,3136.1,3135.0,1.08909918]
[1768281470785,1.08909918,3136.1,3135.2,1.08909918]
[1768281470987,0.0047892,3136.3,3135.6,1.08909918]
[1768281471689,0.0047892,3136.3,3135.2,3.36161091]
[1768281471981,0.00359377,3137.1,3135.6,0.0047892]
[1768281472180,1.08909918,3136.5,3135.6,1.09388838]
[1768281472685,1.08909918,3136.8,3135.8,1.08909918]
[1768281473089,1.08909918,3136.7,3135.6,0.0047892]
[1768281473384,1.08909918,3136.7,3135.6,1.09388838]
[1768281473582,1.08909918,3136.6,3135.6,1.09388838]
[1768281473782,1.08909918,3136.8,3135.7,1.08909918]
[1768281474385,1.08909918,3136.8,3135.9,1.08909918]
[1768281475588,0.00359377,3137.1,3136.2,1.08909918]
[1768281475983,0.00359377,3137.1,3135.7,1.08909918]
[1768281475984,1.08909918,3137.0,3136.0,1.08909918]
[1768281476184,1.08909918,3136.6,3135.7,1.08909918]
[1768281477290,1.08980907,3137.1,3135.6,4.45261541]
[1768281477593,0.00359377,3137.1,3135.6,4.45261541]
[1768281479094,1.0862153,3136.9,3135.6,4.45261541]
[1768281480277,4.28295513,3136.6,3135.6,0.0047892]
[1768281480784,3.19673983,3136.6,3135.6,0.0047892]
[1768281481591,3.19673983,3137.0,3135.6,1.0910045]
[1768281481785,4.28295513,3137.0,3135.6,1.0910045]
[1768281481986,4.28295513,3137.0,3135.6,0.0047892]
[1768281482491,4.28295513,3136.7,3135.6,0.0047892]
[1768281482700,3.19673983,3136.7,3135.6,0.0047892]
[1768281485693,3.34121782,3137.9,3136.4,1.0862153]
[1768281485890,3.34121782,3138.3,3136.9,1.0862153]
[1768281486093,0.00359377,3137.9,3136.8,1.0862153]
[1768281486489,1.0862153,3139.2,3136.0,1.414]
[1768281486490,1.07966391,3139.7,3137.8,2.1724306]
[1768281486689,1.07966391,3139.7,3138.2,1.0862153]
[1768281486690,4.42088173,3139.7,3138.2,1.0862153]
[1768281486892,3.34481159,3139.6,3137.9,3.54683609]
[1768281487091,0.83748806,3139.5,3137.9,3.54683609]
[1768281487287,3.34481159,3139.5,3137.4,1.413]
[1768281487596,3.34481159,3139.5,3136.8,3.54683609]
[1768281487795,3.34121782,3139.3,3137.0,3.54683609]
[1768281488492,3.34121782,3139.3,3137.0,4.95983609]
[1768281488894,3.34121782,3139.3,3137.0,5.20624399]
[1768281489093,3.34121782,3139.3,3137.0,3.54683609]
[1768281489401,3.34121782,3139.1,3137.0,3.54683609]
[1768281490299,3.34121782,3138.9,3136.9,0.00246139]
[1768281490598,3.34121782,3138.7,3136.9,0.00246139]
[1768281491400,0.00359377,3138.4,3136.9,0.00246139]
[1768281491799,3.34481159,3138.4,3136.9,0.00246139]
[1768281492900,3.34121782,3138.1,3135.9,3.54683609]
[1768281493197,3.34121782,3138.1,3136.0,1.6594079]
[1768281493500,3.34121782,3138.6,3136.6,5.20624399]
[1768281493697,0.84351353,3138.5,3136.6,5.20624399]
[1768281493893,0.83991976,3138.4,3136.6,5.20930204]
[1768281494098,3.34121782,3138.6,3136.6,5.20930204]
[1768281494296,3.34121782,3138.6,3136.7,3.5703172]
[1768281494704,3.35630794,3138.5,3136.7,3.5703172]
[1768281494902,3.35630794,3138.5,3136.6,0.00305805]
[1768281498715,3.35630794,3138.5,3136.6,3.57337525]
[1768281500717,3.35271417,3138.5,3136.6,3.57337525]
[1768281500917,3.35271417,3139.0,3136.9,3.5703172]
[1768281506526,3.35271417,3138.8,3136.7,0.15959]
[1768281506719,3.35271417,3138.8,3136.7,3.7299072]
[1768281507113,3.35271417,3138.5,3136.7,0.15959]
[1768281507318,3.35271417,3138.5,3136.6,0.00305805]
[1768281507723,0.00478095,3137.9,3136.6,0.00305805]
[1768281508731,0.00837472,3137.9,3136.6,0.00305805]
[1768281512417,3.36108889,3137.9,3136.6,0.00305805]
[1768281513935,0.00837472,3137.9,3136.6,5.23278315]
[1768281514222,7.50524168,3139.3,3136.6,5.23278315]
[1768281514223,3.35271417,3139.0,3137.0,1.6594079]
[1768281514429,3.35271417,3139.5,3137.4,3.5703172]
[1768281514728,4.49441817,3139.4,3137.4,3.5703172]
[1768281514926,0.84311596,3139.3,3137.4,3.5703172]
[1768281515127,0.00359377,3139.3,3137.4,3.5703172]
[1768281515428,3.191,3140.1,3137.9,3.38657582]
[1768281515613,3.191,3140.1,3138.1,3.38657582]
[1768281516227,3.65489598,3140.4,3138.6,0.00478095]
[1768281516425,0.00359377,3139.5,3138.6,0.00478095]
[1768281516727,3.65489598,3140.4,3138.6,3.39135677]
[1768281516922,3.65489598,3140.4,3138.6,0.00478095]
[1768281517124,0.00359377,3139.6,3138.6,0.00478095]
[1768281517326,3.65489598,3141.6,3139.1,1.6594079]
[1768281517520,3.65489598,3141.4,3139.2,7.98657582]
[1768281517724,0.15934,3141.7,3138.7,3.38657582]
[1768281517725,3.65489598,3141.0,3138.7,3.38657582]
[1768281517923,3.65489598,3141.0,3138.8,4.6]
[1768281518222,0.00285968,3141.0,3139.5,0.00478095]
[1768281518530,3.65775566,3141.0,3139.5,0.00478095]
[1768281520221,3.65489598,3140.8,3139.5,0.00478095]
[1768281521225,0.00285968,3141.0,3139.5,0.00478095]
[1768281521824,3.65775566,3141.0,3139.5,0.00478095]
[1768281527341,0.00285968,3141.0,3139.5,5.05076467]
[1768281528539,0.00285968,3141.0,3139.5,3.39135677]
[1768281529831,3.65489598,3142.0,3140.2,1.6594079]
[1768281530031,3.65489598,3142.6,3140.3,3.38657582]
[1768281530237,3.65489598,3142.6,3140.4,1.6594079]
[1768281530437,3.65489598,3142.6,3140.5,3.38657582]
[1768281530633,3.65489598,3143.2,3140.9,3.38657582]
[1768281530829,3.65806746,3143.2,3141.2,1.6594079]
[1768281531035,3.65806746,3143.2,3141.2,0.00741639]
[1768281531229,3.65489598,3143.0,3141.2,0.00741639]
[1768281531430,1.6594079,3142.4,3141.2,0.00741639]
[1768281531743,6.00317148,3143.2,3141.2,0.00741639]
[1768281531744,3.65489598,3142.8,3141.2,0.00741639]
[1768281533046,0.00317148,3143.2,3141.3,5.04598372]
[1768281533244,3.65806746,3143.2,3141.3,3.38657582]
[1768281534343,3.65806746,3143.2,3141.2,0.00741639]
[1768281535042,5.31747536,3143.2,3141.2,0.00741639]
[1768281535245,3.65489598,3143.1,3141.2,0.00741639]
[1768281535637,3.65489598,3143.1,3141.2,1.66682429]
[1768281535836,3.65489598,3143.1,3141.2,0.00741639]
[1768281536042,3.65489598,3143.1,3141.2,3.39399221]
[1768281536234,3.65489598,3143.1,3141.2,0.00741639]
[1768281536934,3.65489598,3143.0,3141.2,0.00741639]
[1768281537335,3.65489598,3143.0,3141.2,1.46842205]
[1768281538145,3.65489598,3142.5,3141.2,0.00741639]
[1768281538442,3.65489598,3142.4,3141.2,0.00741639]
[1768281538934,3.65489598,3142.1,3140.3,1.46100566]
[1768281539447,1.446,3142.8,3140.1,0.15942]
[1768281539448,3.65489598,3141.8,3140.1,0.15942]
[1768281539945,3.65489598,3141.8,3140.1,0.00240421]
[1768281540135,3.65489598,3141.8,3140.1,1.46340987]
[1768281540336,2.86224168,3143.6,3141.5,1.46100566]
[1768281540337,3.65489598,3143.1,3141.5,1.46100566]
[1768281540738,3.65489598,3142.9,3141.0,1.46100566]
[1768281540943,3.65489598,3142.9,3140.7,0.15938]
[1768281541143,3.187,3143.4,3141.5,1.46100566]
[1768281541144,3.65806746,3143.2,3141.5,1.46100566]
[1768281542253,3.65806746,3143.2,3141.8,1.46100566]
[1768281542254,0.00317148,3143.2,3141.8,1.46100566]
[1768281542547,0.00317148,3143.2,3141.6,3.54591582]
[1768281543249,3.65489598,3142.6,3141.2,0.15936]
[1768281543444,3.65489598,3143.1,3141.5,1.46100566]
[1768281543652,3.65489598,3143.0,3141.2,0.15936]
[1768281544044,0.00477326,3142.4,3141.2,0.15936]
[1768281545649,0.00477326,3142.4,3140.9,1.46100566]
[1768281546040,3.33883525,3142.4,3140.7,1.46100566]
[1768281546236,3.33883525,3142.4,3140.5,1.46100566]
[1768281547254,3.33406199,3142.2,3140.4,0.1594]
[1768281547550,3.33406199,3142.2,3140.5,1.46100566]
[1768281547741,3.33406199,3142.2,3140.4,0.1594]
[1768281547944,3.33406199,3142.2,3140.5,1.46100566]
[1768281548647,1.445,3142.3,3140.4,3.56892584]
[1768281548951,0.00477326,3142.4,3141.5,1.46100566]
[1768281549342,0.00477326,3142.4,3141.3,1.46100566]
[1768281549751,0.00477326,3142.4,3141.0,1.46100566]
[1768281549949,0.00477326,3142.4,3140.9,0.15937]
[1768281550146,3.33883525,3142.4,3140.9,1.62037566]
[1768281551045,3.33883525,3142.4,3140.1,0.00240421]
[1768281551246,3.33883525,3142.4,3140.8,1.46100566]